[Event "Titled Tuesday Blitz October 04 Late 2022"]
[White "Shandrygin, Nikita"]
[Black "Hambleton, Aman"]
[WhiteFideId "24198668"]
[BlackFideId "2606577"]
[WhiteElo "2323"]
[BlackElo "2538"]
[Result "0-1"]
[Round "11"]
[TimeControl "180+1"]
[Date "2022.10.04"]
[WhiteClock "0:00:03"]
[BlackClock "0:00:04"]

1. e4 {[%clk 0:03:00]}  b6 {[%clk 0:02:58]} 2. d4 {[%clk 0:03:00]}  Bb7 {[%clk 0:02:58]} 3. Nc3 {[%clk 0:03:01]}  e6 {[%clk 0:02:59]} 4. a3 {[%clk 0:03:00]}  g6 {[%clk 0:02:59]} 5. Be3 {[%clk 0:02:59]}  Bg7 {[%clk 0:02:59]} 6. Qd2 {[%clk 0:03:00]}  h6 {[%clk 0:03:00]} 7. O-O-O {[%clk 0:02:59]}  d6 {[%clk 0:03:00]} 8. h3 {[%clk 0:02:59]}  a6 {[%clk 0:03:01]} 9. g4 {[%clk 0:02:59]}  b5 {[%clk 0:03:01]} 10. f4 {[%clk 0:02:54]}  Ne7 {[%clk 0:03:02]} 11. f5 {[%clk 0:02:43]}  gxf5 {[%clk 0:02:36]} 12. gxf5 {[%clk 0:02:39]}  Nd7 {[%clk 0:01:59]} 13. fxe6 {[%clk 0:02:36]}  fxe6 {[%clk 0:02:00]} 14. d5 {[%clk 0:02:24]}  Ne5 {[%clk 0:01:55]} 15. dxe6 {[%clk 0:02:03]}  Bc8 {[%clk 0:01:24]} 16. Be2 {[%clk 0:01:05]}  Bxe6 {[%clk 0:01:24]} 17. Nf3 {[%clk 0:01:04]}  N7c6 {[%clk 0:01:06]} 18. Nd5 {[%clk 0:00:58]}  Qd7 {[%clk 0:01:00]} 19. Nxe5 {[%clk 0:00:31]}  Nxe5 {[%clk 0:01:01]} 20. Bh5+ {[%clk 0:00:31]}  Bf7 {[%clk 0:00:55]} 21. Bxf7+ {[%clk 0:00:29]}  Qxf7 {[%clk 0:00:45]} 22. Rdf1 {[%clk 0:00:20]}  Qd7 {[%clk 0:00:45]} 23. b3 {[%clk 0:00:18]}  O-O-O {[%clk 0:00:40]} 24. Rhg1 {[%clk 0:00:09]}  Kb7 {[%clk 0:00:30]} 25. a4 {[%clk 0:00:09]}  Rhf8 {[%clk 0:00:23]} 26. Rf5 {[%clk 0:00:09]}  Rxf5 {[%clk 0:00:16]} 27. exf5 {[%clk 0:00:10]}  Nf3 {[%clk 0:00:17]} 28. Qg2 {[%clk 0:00:07]}  Nxg1 {[%clk 0:00:17]} 29. f6 {[%clk 0:00:06]}  Bh8 {[%clk 0:00:08]} 30. Bxg1 {[%clk 0:00:04]}  Qc6 {[%clk 0:00:07]} 31. Bd4 {[%clk 0:00:04]}  Rf8 {[%clk 0:00:02]} 32. Qf3 {[%clk 0:00:04]}  bxa4 {[%clk 0:00:02]} 33. bxa4 {[%clk 0:00:04]}  Kb8 {[%clk 0:00:02]} 34. Qb3+ {[%clk 0:00:03]}  Ka8 {[%clk 0:00:02]} 35. Nb4 {[%clk 0:00:03]}  Qh1+ {[%clk 0:00:02]} 36. Kb2 {[%clk 0:00:02]}  Rb8 {[%clk 0:00:03]} 37. Qc4 {[%clk 0:00:02]}  Qb7 {[%clk 0:00:02]} 38. Bc3 {[%clk 0:00:02]}  c5 {[%clk 0:00:02]} 39. Ka2 {[%clk 0:00:02]}  cxb4 {[%clk 0:00:03]} 40. Bb2 {[%clk 0:00:03]}  h5 {[%clk 0:00:02]} 41. f7 {[%clk 0:00:03]}  d5 {[%clk 0:00:02]} 42. Qc5 {[%clk 0:00:03]}  Qxf7 {[%clk 0:00:02]} 43. Qd6 {[%clk 0:00:04]}  Qb7 {[%clk 0:00:03]} 44. Bxh8 {[%clk 0:00:03]}  Rxh8 {[%clk 0:00:03]} 45. Qe5 {[%clk 0:00:04]}  Rc8 {[%clk 0:00:03]} 46. Kb2 {[%clk 0:00:03]}  Qc6 {[%clk 0:00:04]} 0-1


[Site "https://www.chess.com"]

[Event "Titled Tuesday Blitz October 04 Late 2022"]
[White "Timmermans, Mark"]
[Black "Nasuta, Grzegorz"]
[WhiteFideId "1026399"]
[BlackFideId "1141686"]
[WhiteElo "2460"]
[BlackElo "2442"]
[Result "1-0"]
[Round "11"]
[TimeControl "180+1"]
[Date "2022.10.04"]
[WhiteClock "0:01:00"]
[BlackClock "0:00:03"]

1. Nf3 {[%clk 0:03:00]}  b6 {[%clk 0:02:59]} 2. c4 {[%clk 0:02:58]}  Bb7 {[%clk 0:02:59]} 3. e3 {[%clk 0:02:59]}  g6 {[%clk 0:02:59]} 4. Be2 {[%clk 0:02:58]}  Bg7 {[%clk 0:03:00]} 5. O-O {[%clk 0:02:58]}  e6 {[%clk 0:03:00]} 6. Nc3 {[%clk 0:02:58]}  Ne7 {[%clk 0:03:01]} 7. b3 {[%clk 0:02:59]}  d6 {[%clk 0:03:01]} 8. Bb2 {[%clk 0:02:59]}  Nd7 {[%clk 0:03:02]} 9. d4 {[%clk 0:02:59]}  O-O {[%clk 0:03:01]} 10. a4 {[%clk 0:02:54]}  a5 {[%clk 0:02:56]} 11. Qc2 {[%clk 0:02:49]}  h6 {[%clk 0:02:55]} 12. Rad1 {[%clk 0:02:49]}  f5 {[%clk 0:02:55]} 13. Nd2 {[%clk 0:02:44]}  g5 {[%clk 0:02:51]} 14. Bf3 {[%clk 0:02:41]}  Bxf3 {[%clk 0:02:50]} 15. Nxf3 {[%clk 0:02:41]}  Rc8 {[%clk 0:02:16]} 16. Ba3 {[%clk 0:02:31]}  g4 {[%clk 0:01:35]} 17. Ne1 {[%clk 0:02:27]}  Ng6 {[%clk 0:01:31]} 18. c5 {[%clk 0:02:25]}  bxc5 {[%clk 0:01:30]} 19. dxc5 {[%clk 0:02:26]}  d5 {[%clk 0:01:16]} 20. c6 {[%clk 0:02:25]}  Nde5 {[%clk 0:01:17]} 21. Bxf8 {[%clk 0:02:23]}  Qxf8 {[%clk 0:01:18]} 22. Nb5 {[%clk 0:02:20]}  Ne7 {[%clk 0:01:18]} 23. Nd4 {[%clk 0:02:18]}  Qf7 {[%clk 0:01:13]} 24. f4 {[%clk 0:02:03]}  N5g6 {[%clk 0:01:09]} 25. Nd3 {[%clk 0:01:59]}  Bxd4 {[%clk 0:01:01]} 26. exd4 {[%clk 0:02:00]}  Qe8 {[%clk 0:01:01]} 27. Rc1 {[%clk 0:01:52]}  Rb8 {[%clk 0:01:00]} 28. Rfe1 {[%clk 0:01:53]}  Kf7 {[%clk 0:00:59]} 29. g3 {[%clk 0:01:37]}  Rb6 {[%clk 0:00:59]} 30. Nc5 {[%clk 0:01:32]}  Rxc6 {[%clk 0:00:59]} 31. Qd2 {[%clk 0:01:30]}  Qh8 {[%clk 0:00:25]} 32. Nd7 {[%clk 0:01:21]}  h5 {[%clk 0:00:18]} 33. Rxc6 {[%clk 0:01:09]}  Nxc6 {[%clk 0:00:19]} 34. Ne5+ {[%clk 0:01:10]}  Ncxe5 {[%clk 0:00:14]} 35. dxe5 {[%clk 0:01:11]}  h4 {[%clk 0:00:14]} 36. Rc1 {[%clk 0:01:10]}  hxg3 {[%clk 0:00:14]} 37. hxg3 {[%clk 0:01:11]}  Qh3 {[%clk 0:00:11]} 38. Rxc7+ {[%clk 0:01:09]}  Ne7 {[%clk 0:00:10]} 39. Qg2 {[%clk 0:01:09]}  Qh8 {[%clk 0:00:10]} 40. Qf2 {[%clk 0:01:05]}  Qh3 {[%clk 0:00:09]} 41. b4 {[%clk 0:01:03]}  axb4 {[%clk 0:00:08]} 42. a5 {[%clk 0:01:04]}  b3 {[%clk 0:00:09]} 43. a6 {[%clk 0:01:02]}  b2 {[%clk 0:00:10]} 44. Rb7 {[%clk 0:01:02]}  d4 {[%clk 0:00:05]} 45. a7 {[%clk 0:01:01]}  Qh8 {[%clk 0:00:03]} 46. Rb8 {[%clk 0:01:00]} 1-0


[Site "https://www.chess.com"]

[Event "Titled Tuesday Blitz October 04 Late 2022"]
[White "Vasquez Schroeder, Rodrigo"]
[Black "Andreikin, Dmitry"]
[WhiteFideId "3400042"]
[BlackFideId "4158814"]
[WhiteElo "2577"]
[BlackElo "2736"]
[Result "1/2-1/2"]
[Round "11"]
[TimeControl "180+1"]
[Date "2022.10.04"]
[WhiteClock "0:00:11"]
[BlackClock "0:00:04"]

1. e4 {[%clk 0:03:00]}  e6 {[%clk 0:02:57]} 2. d4 {[%clk 0:03:00]}  d5 {[%clk 0:02:58]} 3. Nc3 {[%clk 0:03:00]}  Bb4 {[%clk 0:02:57]} 4. e5 {[%clk 0:03:00]}  c5 {[%clk 0:02:57]} 5. Bd2 {[%clk 0:03:01]}  Bd7 {[%clk 0:02:55]} 6. Nce2 {[%clk 0:02:59]}  Bxd2+ {[%clk 0:02:53]} 7. Qxd2 {[%clk 0:02:59]}  cxd4 {[%clk 0:02:53]} 8. Nxd4 {[%clk 0:02:59]}  Ne7 {[%clk 0:02:53]} 9. f4 {[%clk 0:02:58]}  Nbc6 {[%clk 0:02:52]} 10. Ngf3 {[%clk 0:02:58]}  Qb6 {[%clk 0:02:52]} 11. c3 {[%clk 0:02:58]}  h6 {[%clk 0:02:39]} 12. O-O-O {[%clk 0:02:57]}  O-O-O {[%clk 0:02:36]} 13. Kb1 {[%clk 0:02:43]}  Kb8 {[%clk 0:02:36]} 14. Be2 {[%clk 0:02:43]}  Na5 {[%clk 0:02:30]} 15. Ka1 {[%clk 0:02:38]}  Rc8 {[%clk 0:02:30]} 16. b3 {[%clk 0:02:37]}  Rc7 {[%clk 0:02:27]} 17. Rc1 {[%clk 0:02:37]}  Rhc8 {[%clk 0:02:27]} 18. Rc2 {[%clk 0:02:37]}  a6 {[%clk 0:02:18]} 19. Rhc1 {[%clk 0:02:35]}  Qa7 {[%clk 0:02:09]} 20. g3 {[%clk 0:02:30]}  Nec6 {[%clk 0:02:00]} 21. Kb2 {[%clk 0:02:25]}  Qb6 {[%clk 0:01:59]} 22. Ka1 {[%clk 0:02:20]}  Na7 {[%clk 0:01:56]} 23. Qe3 {[%clk 0:02:15]}  Bb5 {[%clk 0:01:51]} 24. Bd1 {[%clk 0:01:59]}  Qc5 {[%clk 0:01:39]} 25. Kb2 {[%clk 0:01:38]}  Qb6 {[%clk 0:01:37]} 26. Ka1 {[%clk 0:01:38]}  Qc5 {[%clk 0:01:25]} 27. Kb2 {[%clk 0:01:35]}  Ka8 {[%clk 0:01:16]} 28. g4 {[%clk 0:01:29]}  Qb6 {[%clk 0:01:13]} 29. f5 {[%clk 0:01:24]}  Ba4 {[%clk 0:01:04]} 30. Qd3 {[%clk 0:00:56]}  Nb5 {[%clk 0:00:56]} 31. Nxb5 {[%clk 0:00:53]}  Bxb5 {[%clk 0:00:53]} 32. Qd4 {[%clk 0:00:53]}  Qc6 {[%clk 0:00:48]} 33. Qb4 {[%clk 0:00:45]}  Qb6 {[%clk 0:00:42]} 34. Qd4 {[%clk 0:00:43]}  Ka7 {[%clk 0:00:42]} 35. Rf2 {[%clk 0:00:27]}  Nc6 {[%clk 0:00:29]} 36. Qxb6+ {[%clk 0:00:28]}  Kxb6 {[%clk 0:00:29]} 37. Bc2 {[%clk 0:00:27]}  a5 {[%clk 0:00:21]} 38. a4 {[%clk 0:00:27]}  Ba6 {[%clk 0:00:20]} 39. Re1 {[%clk 0:00:27]}  d4 {[%clk 0:00:18]} 40. Nxd4 {[%clk 0:00:22]}  Nxd4 {[%clk 0:00:17]} 41. cxd4 {[%clk 0:00:23]}  Rd8 {[%clk 0:00:16]} 42. Rf4 {[%clk 0:00:20]}  Rcd7 {[%clk 0:00:17]} 43. Rd1 {[%clk 0:00:21]}  Kc7 {[%clk 0:00:13]} 44. h4 {[%clk 0:00:21]}  b5 {[%clk 0:00:12]} 45. axb5 {[%clk 0:00:20]}  Bxb5 {[%clk 0:00:12]} 46. Rd2 {[%clk 0:00:21]}  Kb6 {[%clk 0:00:12]} 47. g5 {[%clk 0:00:21]}  hxg5 {[%clk 0:00:11]} 48. hxg5 {[%clk 0:00:21]}  exf5 {[%clk 0:00:06]} 49. Bxf5 {[%clk 0:00:21]}  Re7 {[%clk 0:00:07]} 50. g6 {[%clk 0:00:18]}  fxg6 {[%clk 0:00:06]} 51. Bxg6 {[%clk 0:00:19]}  Rxe5 {[%clk 0:00:06]} 52. dxe5 {[%clk 0:00:16]}  Rxd2+ {[%clk 0:00:06]} 53. Kc3 {[%clk 0:00:17]}  Re2 {[%clk 0:00:06]} 54. Be4 {[%clk 0:00:17]}  Bc6 {[%clk 0:00:05]} 55. Bxc6 {[%clk 0:00:15]}  Kxc6 {[%clk 0:00:06]} 56. Kd4 {[%clk 0:00:15]}  Rd2+ {[%clk 0:00:05]} 57. Kc4 {[%clk 0:00:15]}  Re2 {[%clk 0:00:04]} 58. Kd4 {[%clk 0:00:14]}  Rd2+ {[%clk 0:00:04]} 59. Ke4 {[%clk 0:00:14]}  Re2+ {[%clk 0:00:04]} 60. Kd4 {[%clk 0:00:11]} 1/2-1/2


[Site "https://www.chess.com"]